fUST/lending_fUST_20240717
["ID","MTS","AMOUNT","RATE_DAILY","PERIOD"]
[332471010,1721215841224,-500.0,0.00021917,2]
[332471011,1721215841234,-500.0,0.00021917,2]
[332471012,1721215841243,-500.0,0.00021917,2]
[332471013,1721215841253,-500.0,0.00021917,2]
[332471014,1721215841263,-500.0,0.00021917,2]
[332471015,1721215841272,-500.0,0.00021917,2]
[332471016,1721215841282,-511.16446902,0.00021917,2]
[332471017,1721215841293,-500.0,0.00021917,2]
[332471018,1721215841303,-500.0,0.00021917,2]
[332471019,1721215841312,-500.0,0.00021917,2]
[332471020,1721215841322,-500.0,0.00021917,2]
[332471021,1721215841332,-500.0,0.00021917,2]
[332471022,1721215841341,-500.0,0.00021917,2]
[332471023,1721215841351,-500.0,0.00021917,2]
[332471024,1721215841360,-500.0,0.00021917,2]
[332471025,1721215841369,-500.0,0.00021917,2]
[332471026,1721215841379,-512.85033136,0.00021917,2]
[332471027,1721215841389,-500.0,0.00021917,2]
[332471028,1721215841397,-500.0,0.00021917,2]
[332471029,1721215841407,-500.0,0.00021917,2]
[332471030,1721215841417,-500.0,0.00021917,2]
[332471031,1721215841427,-500.0,0.00021917,2]
[332471032,1721215841437,-500.0,0.00021917,2]
[332471033,1721215841446,-500.0,0.00021917,2]
[332471034,1721215841456,-603.99930995,0.00021917,2]
[332471035,1721215841466,-500.0,0.00021917,2]
[332471036,1721215841487,-500.0,0.00021917,2]
[332471037,1721215841497,-230.52741111,0.00021917,2]
[332471038,1721215841507,-500.0,0.00021917,2]
[332471039,1721215841516,-500.0,0.00021917,2]
[332471040,1721215841526,-500.15193219,0.00021917,2]
[332471041,1721215841535,-500.0,0.00021917,2]
[332471042,1721215841548,-500.0,0.00021917,2]
[332471043,1721215841559,-500.0,0.00021917,2]
[332471044,1721215841568,-500.0,0.00021917,2]
[332471045,1721215841577,-500.0,0.00021917,2]
[332471046,1721215841587,-500.0,0.00021917,2]
[332471047,1721215841597,-480.0,0.00021917,2]
[332471048,1721215841606,-500.0,0.00021917,2]
[332471049,1721215841616,-500.0,0.00021917,2]
[332471050,1721215841627,-500.0,0.00021917,2]
[332471051,1721215841638,-500.0,0.00021917,2]
[332471052,1721215841648,-500.0,0.00021917,2]
[332471053,1721215841658,-340.65018104,0.00021917,2]
[332471054,1721215841668,-500.0,0.00021917,2]
[332471055,1721215841678,-500.0,0.00021917,2]
[332471056,1721215841688,-500.0,0.00021917,2]
[332471057,1721215841698,-222.85726708,0.00021917,2]
[332471058,1721215841711,-500.0,0.00021917,2]
[332471059,1721215841720,-500.0,0.00021917,2]
[332471060,1721215841731,-500.0,0.00021917,2]
[332471061,1721215841741,-500.0,0.00021917,2]
[332471062,1721215841750,-500.0,0.00021917,2]
[332471063,1721215841760,-500.0,0.00021917,2]
[332471064,1721215841769,-500.0,0.00021917,2]
[332471065,1721215841779,-500.0,0.00021917,2]
[332471066,1721215841788,-500.0,0.00021917,2]
[332471067,1721215841798,-504.22135143,0.00021917,2]
[332471068,1721215841807,-500.0,0.00021917,2]
[332471069,1721215841817,-500.0,0.00021917,2]
[332471070,1721215841827,-500.0,0.00021917,2]
[332471071,1721215841838,-500.0,0.00021917,2]
[332471072,1721215841850,-500.0,0.00021917,2]
[332471073,1721215841861,-500.0,0.00021917,2]
[332471074,1721215841871,-500.0,0.00021917,2]
[332471075,1721215841882,-500.0,0.00021917,2]
[332471076,1721215841891,-171.05943215,0.00021917,2]
[332471077,1721215841901,-226.06683349,0.00021917,2]
[332471078,1721215841911,-217.18642598,0.00021917,2]
[332471079,1721215842138,-428.94151396,0.00021917,2]
[332471080,1721215842149,-2254.14,0.00021917,2]
[332471081,1721215842160,-15002.24,0.00021917,2]
[332471082,1721215842170,-650.61656399,0.00021917,2]
[332471109,1721215843320,-114.38036114,0.00021917,2]
[332471110,1721215843329,-500.0,0.00021917,2]
[332471111,1721215843338,-297.11,0.00021917,2]
[332471112,1721215843348,-500.0,0.00021917,2]
[332471113,1721215843356,-526.23571842,0.00021917,2]
[332471114,1721215843365,-500.0,0.00021917,2]
[332471115,1721215843374,-500.0,0.00021917,2]
[332471116,1721215843384,-500.0,0.00021917,2]
[332471117,1721215843394,-500.0,0.00021917,2]
[332471118,1721215843403,-500.0,0.00021917,2]
[332471119,1721215843413,-500.0,0.00021917,2]
[332471120,1721215843422,-500.0,0.00021917,2]
[332471121,1721215843431,-500.0,0.00021917,2]
[332471122,1721215843441,-500.0,0.00021917,2]
[332471123,1721215843450,-500.0,0.00021917,2]
[332471124,1721215843461,-646.41947755,0.00021917,2]
[332471125,1721215843471,-500.0,0.00021917,2]
[332471126,1721215843481,-500.0,0.00021917,2]
[332471127,1721215843490,-500.0,0.00021917,2]
[332471128,1721215843499,-16.24123352,0.00021917,2]
[332471176,1721216021297,1491.75545419,0.00014999,2]
[332471180,1721216049891,315.03864118,0.00014999,2]
[332471183,1721216155894,184.39320847,0.00014999,2]
[332471185,1721216166866,1586.01018732,0.00014999,2]
[332471201,1721216300446,2225.64993316,0.00014999,2]
[332471203,1721216320565,5505.20654968,0.00014998,2]
[332471206,1721216337177,2674.2174896,0.00014999,2]
[332471207,1721216337239,1021.4432238,0.00015,2]
[332471209,1721216346170,525.97478029,0.00014999,2]
[332471213,1721216427654,897.37652006,0.00014999,2]
[332471216,1721216465121,995.38244652,0.00014999,2]
[332471218,1721216477877,936.71562116,0.00014999,2]
[332471219,1721216498272,2710.7078577,0.00014999,2]
[332471220,1721216498306,980.10024446,0.00014999,2]
[332471221,1721216513259,273.37336231,9.9e-05,2]
[332471222,1721216516179,524.66891625,0.00014999,2]
[332471223,1721216521978,273.37336231,9.9e-05,2]
[332471225,1721216530474,273.37336231,9.9e-05,2]
[332471226,1721216538918,273.37336231,9.9e-05,2]
[332471227,1721216547159,273.37336231,9.9e-05,2]
[332471228,1721216553298,921.40436468,0.00012,2]
[332471229,1721216555168,273.37336231,9.9e-05,2]
[332471230,1721216563519,273.37336231,9.9e-05,2]
[332471231,1721216571620,273.37336231,9.9e-05,2]
[332471232,1721216579815,273.37336231,9.9e-05,2]
[332471233,1721216587945,273.37336231,9.9e-05,2]
[332471234,1721216596144,273.37336231,9.9e-05,2]
[332471235,1721216604801,273.37336231,9.9e-05,2]
[332471236,1721216607397,935.91503626,0.00014999,2]
[332471237,1721216613032,273.37336231,9.9e-05,2]
[332471238,1721216621002,273.37336231,9.9e-05,2]
[332471239,1721216630641,273.37336231,9.9e-05,2]
[332471240,1721216638656,273.37336231,9.9e-05,2]
[332471241,1721216645161,1501.2098115,0.00012,2]
[332471242,1721216647441,273.37336231,9.9e-05,2]
[332471243,1721216652657,209.52977959,0.00012,2]
[332471244,1721216656188,273.37336231,9.9e-05,2]
[332471245,1721216665124,273.37336231,9.9e-05,2]
[332471246,1721216667360,530.20355034,0.00012,2]
[332471247,1721216673773,273.37336231,9.9e-05,2]
[332471248,1721216677799,482.25120408,0.00012,2]
[332471249,1721216682057,273.37336231,9.9e-05,2]
[332471250,1721216690299,273.37336231,9.9e-05,2]
[332471251,1721216698970,273.37336231,9.9e-05,2]
[332471252,1721216707454,273.37336231,9.9e-05,2]
[332471253,1721216712556,1043.69980669,0.00015,2]
[332471254,1721216714263,1992.51989508,0.00012,2]
[332471255,1721216715814,273.37336231,9.9e-05,2]
[332471256,1721216717783,155.50074004,0.00012,2]
[332471257,1721216724080,273.37336231,9.9e-05,2]
[332471258,1721216733563,273.37336231,9.9e-05,2]
[332471259,1721216741549,273.37336231,9.9e-05,2]
[332471260,1721216746213,826.40482155,0.00012,2]
[332471261,1721216749822,273.37336231,9.9e-05,2]
[332471262,1721216757879,273.37336231,9.9e-05,2]
[332471263,1721216767329,258.90111747,9.9e-05,2]
[332471266,1721216848347,5477.24580596,0.00012,2]
[332471269,1721216899926,-434.51734343,0.00015995,2]
[332471272,1721216900002,-57.38404821,0.00015995,2]
[332471273,1721216900033,-277.52554619,0.00016832,2]
[332471275,1721216906168,6981.98564229,0.00014545,2]
[332471276,1721216924991,-200.2890765,0.00016916,2]
[332471277,1721216925019,-249.61680569,0.00017,2]
[332471278,1721216925052,2132.69930736,0.00014545,2]
[332471282,1721216934343,413.75550775,0.00014545,2]
[332471340,1721217031977,-302.58162969,0.00016255,2]
[332471342,1721217031987,-59.59741312,0.00017,2]
[332471344,1721217031998,-183.149699,0.0001717,2]
[332471347,1721217032010,-273.89972844,0.0001763,2]
[332471349,1721217032020,-250.0,0.00017702,2]
[332471351,1721217032030,-191.36840556,0.00018,2]
[332471353,1721217032040,-217.18642598,0.0001818,2]
[332471355,1721217032050,-3449.68945504,0.000188,2]
[332471357,1721217032059,-717.76563203,0.00018898,2]
[332471468,1721217041013,-29282.23436797,0.00018898,2]
[332471469,1721217041022,-150.0,0.000189,2]
[332471470,1721217041031,-164.696287,0.00019178,2]
[332471471,1721217041040,-3449.68945502,0.00020946,2]
[332471472,1721217041050,-200.07730814,0.00021,2]
[332471473,1721217041060,-1000.0,0.00021,4]
[332471474,1721217041069,-228.33337167,0.00021095,2]
[332471475,1721217041079,-501.120997,0.00021096,2]
[332471476,1721217041088,-175.44232,0.00021096,2]
[332471477,1721217041097,-153.0,0.0002119,2]
[332471478,1721217041106,-153.0,0.0002119,2]
[332471479,1721217041116,-153.0,0.0002119,2]
[332471480,1721217041125,-306.0,0.0002119,2]
[332471481,1721217041134,-153.0,0.0002119,2]
[332471482,1721217041144,-153.0,0.0002119,2]
[332471483,1721217041154,-153.0,0.0002119,2]
[332471484,1721217041163,-153.0,0.0002119,2]
[332471485,1721217041172,-153.0,0.0002119,2]
[332471486,1721217041181,-153.0,0.0002119,2]
[332471487,1721217041191,-153.0,0.0002119,2]
[332471488,1721217041200,-153.0,0.0002119,2]
[332471489,1721217041209,-153.0,0.0002119,2]
[332471490,1721217041219,-153.0,0.0002119,2]
[332471491,1721217041228,-344.96997794,0.00021663,2]
[332471492,1721217041237,-311.76793775,0.00021663,2]
[332471493,1721217041247,-5159.77007997,0.00021681,2]
[332471494,1721217041256,-1000.0,0.00021707,2]
[332471495,1721217041268,-151.0,0.00021721,2]
[332471496,1721217041278,-311.76793773,0.0002174,2]
[332471497,1721217041287,-300.44952216,0.00021745,2]
[332471498,1721217041296,-1000.0,0.00021763,2]
[332471499,1721217041305,-150.0,0.000218,2]
[332471500,1721217041315,-1945.47989268,0.00021817,2]
[332471501,1721217041326,-218.68808679,0.00021817,2]
[332471502,1721217041337,-877.02144721,0.00021819,2]
[332471503,1721217041349,-13597.0431427,0.00021907,3]
[332471504,1721217041360,-1067.07630449,0.00021917,2]
[332471505,1721217041372,-3699.3,0.00021917,2]
[332471506,1721217041382,-483.75876648,0.00021917,2]
[332471507,1721217041392,-501.62817362,0.00021917,2]
[332471508,1721217041401,-500.0,0.00021917,2]
[332471509,1721217041412,-500.0,0.00021917,2]
[332471510,1721217041422,-500.0,0.00021917,2]
[332471511,1721217041432,-500.0,0.00021917,2]
[332471512,1721217041443,-500.0,0.00021917,2]
[332471513,1721217041454,-500.0,0.00021917,2]
[332471514,1721217041465,-500.0,0.00021917,2]
[332471515,1721217041475,-500.0,0.00021917,2]
[332471516,1721217041486,-500.0,0.00021917,2]
[332471517,1721217041497,-500.0,0.00021917,2]
[332471518,1721217041508,-500.0,0.00021917,2]
[332471519,1721217041519,-500.0,0.00021917,2]
[332471520,1721217041531,-500.0,0.00021917,2]
[332471521,1721217041540,-500.0,0.00021917,2]
[332471522,1721217041550,-435.31866524,0.00021917,2]
[332471523,1721217041560,-500.0,0.00021917,2]
[332471524,1721217041571,-500.0,0.00021917,2]
[332471525,1721217041581,-500.0,0.00021917,2]
[332471526,1721217041591,-500.0,0.00021917,2]
[332471527,1721217041601,-500.0,0.00021917,2]
[332471528,1721217041611,-500.0,0.00021917,2]
[332471529,1721217041621,-500.0,0.00021917,2]
[332471530,1721217041631,-500.0,0.00021917,2]
[332471531,1721217041641,-500.0,0.00021917,2]
[332471532,1721217041650,-500.0,0.00021917,2]
[332471533,1721217041660,-500.0,0.00021917,2]
[332471534,1721217041669,-500.0,0.00021917,2]
[332471535,1721217041679,-500.0,0.00021917,2]
[332471536,1721217041689,-500.0,0.00021917,2]
[332471537,1721217041700,-500.0,0.00021917,2]
[332471538,1721217041710,-500.0,0.00021917,2]
[332471539,1721217041719,-500.0,0.00021917,2]
[332471540,1721217041729,-500.0,0.00021917,2]
[332471541,1721217041738,-500.0,0.00021917,2]
[332471542,1721217041748,-500.0,0.00021917,2]
[332471543,1721217041757,-500.0,0.00021917,2]
[332471544,1721217041768,-500.0,0.00021917,2]
[332471545,1721217041777,-500.0,0.00021917,2]
[332471546,1721217041787,-500.0,0.00021917,2]
[332471547,1721217041796,-500.0,0.00021917,2]
[332471548,1721217041805,-500.0,0.00021917,2]
[332471549,1721217041815,-500.0,0.00021917,2]
[332471550,1721217041823,-500.0,0.00021917,2]
[332471551,1721217041833,-500.0,0.00021917,2]
[332471552,1721217041842,-500.0,0.00021917,2]
[332471553,1721217041851,-500.0,0.00021917,2]
[332471554,1721217041861,-500.0,0.00021917,2]
[332471555,1721217041870,-500.0,0.00021917,2]
[332471556,1721217041880,-500.0,0.00021917,2]
[332471557,1721217041889,-500.0,0.00021917,2]
[332471558,1721217041898,-500.0,0.00021917,2]
[332471559,1721217041908,-529.06699545,0.00021917,2]
[332471560,1721217041918,-500.0,0.00021917,2]
[332471561,1721217041927,-500.0,0.00021917,2]
[332471562,1721217041937,-500.0,0.00021917,2]
[332471563,1721217041946,-500.0,0.00021917,2]
[332471564,1721217041955,-500.0,0.00021917,2]
[332471565,1721217041968,-512.12401173,0.00021917,2]
[332471566,1721217041978,-500.0,0.00021917,2]
[332471567,1721217041987,-500.0,0.00021917,2]
[332471568,1721217041996,-500.0,0.00021917,2]
[332471569,1721217042006,-500.0,0.00021917,2]
[332471570,1721217042018,-500.0,0.00021917,2]
[332471571,1721217042027,-500.0,0.00021917,2]
[332471572,1721217042036,-500.0,0.00021917,2]
[332471573,1721217042046,-500.0,0.00021917,2]
[332471574,1721217042055,-509.84706491,0.00021917,2]
[332471575,1721217042065,-500.0,0.00021917,2]
[332471576,1721217042075,-500.0,0.00021917,2]
[332471577,1721217042084,-500.0,0.00021917,2]
[332471578,1721217042094,-500.0,0.00021917,2]
[332471579,1721217042103,-232.95849691,0.00021917,2]
[332471580,1721217042112,-500.0,0.00021917,2]
[332471581,1721217042121,-500.0,0.00021917,2]
[332471582,1721217042131,-500.0,0.00021917,2]
[332471583,1721217042140,-500.0,0.00021917,2]
[332471584,1721217042149,-500.0,0.00021917,2]
[332471585,1721217042159,-500.0,0.00021917,2]
[332471586,1721217042169,-500.0,0.00021917,2]
[332471587,1721217042178,-500.0,0.00021917,2]
[332471588,1721217042187,-500.0,0.00021917,2]
[332471589,1721217042197,-500.0,0.00021917,2]
[332471590,1721217042206,-500.0,0.00021917,2]
[332471591,1721217042215,-500.0,0.00021917,2]
[332471592,1721217042224,-500.04157604,0.00021917,2]
[332471593,1721217042233,-500.0,0.00021917,2]
[332471594,1721217042242,-500.0,0.00021917,2]
[332471595,1721217042252,-273.27086151,0.00021917,2]
[332471596,1721217042263,-584.47402881,0.00021917,2]
[332471597,1721217042273,-500.0,0.00021917,2]
[332471598,1721217042282,-500.0,0.00021917,2]
[332471599,1721217042291,-500.0,0.00021917,2]
[332471600,1721217042301,-500.0,0.00021917,2]
[332471601,1721217042310,-500.0,0.00021917,2]
[332471602,1721217042319,-500.0,0.00021917,2]
[332471603,1721217042328,-500.0,0.00021917,2]
[332471604,1721217042337,-500.0,0.00021917,2]
[332471605,1721217042346,-502.36852615,0.00021917,2]
[332471606,1721217042355,-500.0,0.00021917,2]
[332471607,1721217042364,-500.0,0.00021917,2]
[332471608,1721217042375,-27.14990447,0.00021917,2]
[332471649,1721217043141,-500.0,0.00021232,2]
[332471651,1721217043151,-472.85009553,0.00021917,2]
[332471652,1721217043161,-500.0,0.00021917,2]
[332471653,1721217043172,-500.0,0.00021917,2]
[332471654,1721217043181,-596.31,0.00021917,2]
[332471655,1721217043191,-500.0,0.00021917,2]
[332471656,1721217043201,-500.0,0.00021917,2]
[332471657,1721217043210,-500.0,0.00021917,2]
[332471658,1721217043220,-500.0,0.00021917,2]
[332471659,1721217043229,-93.50061554,0.00021917,2]
[332471662,1721217043339,-360.263448,0.00021917,2]
[332471796,1721217046042,-228.33337167,0.00020545,2]
[332471797,1721217046052,-311.76793773,0.00021817,2]
[332471798,1721217046063,-46.23593646,0.00021917,2]
[332471799,1721217046073,-246.41787149,0.00021917,2]
[332471800,1721217046083,-293.82005756,0.00021917,2]
[332471807,1721217235545,2190.38974385,0.0001,2]
[332471814,1721217271239,1411.89374099,0.00012121,2]
[332471821,1721217315931,668.58724526,0.00014692,2]
[332471824,1721217518555,6000.0,0.00024,60]
[332471825,1721217576391,526.40974663,0.00014999,2]
[332471826,1721217623117,197.0,0.000157,2]
[332471829,1721217694214,2587.06168,0.00024,60]
[332471838,1721217820581,300000.0,1.9e-05,2]
[332471839,1721217836857,309.18067122,0.00014999,2]
[332471840,1721217848069,526.55387705,0.00014999,2]
[332471843,1721218005323,501.40754687,0.00014999,2]
[332471844,1721218030067,187.7887475,0.00014999,2]
[332471847,1721218099941,526.26561621,0.00014999,2]
[332471848,1721218106931,-441.00438412,0.00015995,2]
[332471850,1721218106979,-50.59906655,0.00015995,2]
[332471851,1721218107009,-280.3924392,0.00016255,2]
[332471855,1721218131892,-404.0597379,0.0001758,2]
[332471856,1721218131924,-52.38456402,0.00018,2]
[332471857,1721218131959,-175.84586114,0.00018,2]
[332471858,1721218207130,-154.79103211,0.00016255,2]
[332471859,1721218207158,-166.44425746,0.00016255,2]
[332471860,1721218207186,-147.85481561,0.00018443,2]
[332471861,1721218207223,-35.29488439,0.00018443,2]
[332472128,1721218242542,-30000.0,0.00018898,2]
[332472129,1721218242553,-150.0,0.000189,2]
[332472130,1721218242563,-3018.47827316,0.00019065,2]
[332472131,1721218242574,-164.696287,0.00019178,2]
[332472132,1721218242583,-1067.07630449,0.0002,2]
[332472133,1721218242593,-228.33337167,0.0002,2]
[332472134,1721218242602,-201.7,0.00020684,2]
[332472135,1721218242612,-200.07730814,0.00021,2]
[332472136,1721218242622,-1000.0,0.00021,4]
[332472137,1721218242631,-476.064947,0.00021096,2]
[332472138,1721218242641,-172.641657,0.00021096,2]
[332472139,1721218242652,-3018.47827314,0.00021171,2]
[332472141,1721218242662,-151.0,0.00021604,2]
[332472142,1721218242672,-300.44952216,0.00021655,2]
[332472143,1721218242681,-344.96997794,0.00021661,2]
[332472144,1721218242691,-5159.77007997,0.00021696,2]
[332472145,1721218242701,-150.0,0.00021786,2]
[332472146,1721218242711,-504.0,0.00021786,2]
[332472147,1721218242721,-207.84529184,0.0002179,2]
[332472148,1721218242731,-150.0,0.000218,2]
[332472149,1721218242741,-207.84529182,0.00021804,2]
[332472150,1721218242751,-2000.0,0.00021817,2]
[332472151,1721218242762,-218.68808679,0.00021817,2]
[332472152,1721218242771,-207.84529182,0.00021817,2]
[332472153,1721218242781,-151.0,0.00021822,2]
[332472154,1721218242792,-1000.0,0.00021841,2]
[332472155,1721218242802,-877.02144721,0.00021874,2]
[332472156,1721218242813,-1000.0,0.0002189,2]
[332472157,1721218242823,-1945.47989268,0.0002189,2]
[332472158,1721218242832,-4823.5584033,0.00021897,3]
[332472159,1721218242843,-294.0,0.000219,2]
[332472160,1721218242853,-19294.2336132,0.00021907,3]
[332472161,1721218242863,-195.9277349,0.00021916,2]
[332472163,1721218242873,-328.70035493,0.00021916,2]
[332472165,1721218242884,-348.3514457,0.00021916,2]
[332472166,1721218242894,-500.0,0.00021916,2]
[332472167,1721218242904,-500.0,0.00021916,2]
[332472169,1721218242914,-380.26224118,0.00021916,2]
[332472171,1721218242924,-500.0,0.00021916,2]
[332472173,1721218242933,-500.0,0.00021916,2]
[332472174,1721218242943,-500.0,0.00021916,2]
[332472175,1721218242953,-500.0,0.00021916,2]
[332472176,1721218242964,-500.0,0.00021916,2]
[332472177,1721218242974,-500.0,0.00021916,2]
[332472178,1721218242983,-500.0,0.00021916,2]
[332472179,1721218242993,-500.0,0.00021916,2]
[332472180,1721218243003,-500.0,0.00021916,2]
[332472181,1721218243015,-500.0,0.00021916,2]
[332472183,1721218243024,-500.0,0.00021916,2]
[332472184,1721218243034,-466.39480945,0.00021916,2]
[332472186,1721218243044,-500.0,0.00021916,2]
[332472188,1721218243054,-450.0,0.00021916,2]
[332472189,1721218243063,-206.17994244,0.00021917,2]
[332472190,1721218243073,-500.0,0.00021917,2]
[332472192,1721218243083,-329.63129064,0.00021917,2]
[332472195,1721218243340,-170.36870936,0.00021917,2]
[332472196,1721218243350,-500.0,0.00021917,2]
[332472197,1721218243359,-500.0,0.00021917,2]
[332472198,1721218243370,-500.0,0.00021917,2]
[332472199,1721218243379,-500.0,0.00021917,2]
[332472200,1721218243388,-500.0,0.00021917,2]
[332472201,1721218243398,-500.0,0.00021917,2]
[332472202,1721218243410,-500.0,0.00021917,2]
[332472203,1721218243421,-492.29200171,0.00021917,2]
[332472238,1721218527611,561.46296804,0.00014999,2]
[332472241,1721218614920,240.40183754,0.00014999,2]
[332472242,1721218642309,3135.78832158,0.00014999,2]
[332472244,1721218708836,403.6290569,0.00014999,2]
[332472245,1721218749968,911.91550211,0.00014999,2]
[332472246,1721218764116,1638.25429105,0.00014999,2]
[332472247,1721218810168,3135.78832158,0.00014999,2]
[332472249,1721218912729,156.45881996,0.00014999,2]
[332472250,1721218955330,3135.78832158,0.00014999,2]
[332472251,1721218956213,2394.15005228,0.00014999,2]
[332472252,1721219035504,198.4345538,0.00014999,2]
[332472253,1721219052775,309.32756182,0.00014999,2]
[332472254,1721219055592,2552.18260868,0.00014999,2]
[332472255,1721219086591,1231.22700678,0.00015,2]
[332472256,1721219087742,295.61184539,0.00014999,2]
[332472257,1721219089074,188.40286211,0.00014999,2]
[332472258,1721219112691,3135.78832158,0.00014999,2]
[332472259,1721219138330,5756.186708,0.00014998,2]
[332472265,1721219197188,1000.0,0.00025,120]
[332472266,1721219248785,745.80357679,0.00014999,2]
[332472270,1721219274704,3135.78832158,0.00014999,2]
[332472272,1721219297752,1158.30679459,0.00014999,2]
[332472278,1721219396831,-479.17780497,0.00015998,2]
[332472280,1721219396870,-12.72358667,0.00015998,2]
[332472286,1721219428739,1811.13161464,0.00014999,2]
[332472287,1721219431658,150.5,0.0001999,7]
[332472304,1721219432257,150.5,0.0001998,7]
[332472309,1721219432374,-191.39935973,0.0001818,2]
[332472310,1721219432384,-154.8364371,0.0001818,2]
[332472311,1721219432393,-215.22717121,0.00018797,2]
[332472312,1721219432757,150.5,0.0001997,7]
[332472345,1721219443273,-491.90139164,0.0001818,2]
[332472347,1721219443284,-84.77282879,0.00018797,2]
[332472349,1721219443293,-3107.80418501,0.000188,2]
[332472351,1721219443303,-207.84529184,0.000188,2]
[332472352,1721219443312,-30000.0,0.00018898,2]
[332472353,1721219443323,-150.0,0.000189,2]
[332472354,1721219443333,-312.07224722,0.00019039,2]
[332472355,1721219443342,-164.696287,0.00019178,2]
[332472356,1721219443352,-207.84529182,0.0001935,2]
[332472357,1721219443362,-207.84529182,0.000199,2]
[332472358,1721219443371,-500.0,0.00019999,2]
[332472359,1721219443380,-500.0,0.00019999,2]
[332472361,1721219443390,-195.9277349,0.00019999,2]
[332472363,1721219443399,-380.26224118,0.00019999,2]
[332472364,1721219443408,-348.3514457,0.00019999,2]
[332472365,1721219443417,-500.0,0.00019999,2]
[332472366,1721219443427,-500.0,0.00019999,2]
[332472367,1721219443436,-500.0,0.00019999,2]
[332472368,1721219443445,-500.0,0.00019999,2]
[332472369,1721219443454,-328.70035493,0.00019999,2]
[332472370,1721219443463,-466.39480945,0.00019999,2]
[332472371,1721219443472,-500.0,0.00019999,2]
[332472372,1721219443482,-500.0,0.00019999,2]
[332472373,1721219443493,-500.0,0.00019999,2]
[332472374,1721219443502,-500.0,0.00019999,2]
[332472375,1721219443514,-500.0,0.00019999,2]
[332472376,1721219443523,-4823.80902104,0.0002,5]
[332472377,1721219443532,-228.33337167,0.0002,2]
[332472378,1721219443542,-43785.8033263,0.0002,2]
[332472379,1721219443551,-3188.37184914,0.0002,2]
[332472380,1721219443568,-3992.29200171,0.0002,2]
[332472381,1721219443625,-3700.91071077,0.0002,2]
[332472382,1721219443635,-316376.67146824,0.0002,2]
[332472383,1721219443645,-150.112233,0.0002,2]
[332472384,1721219443654,-164.769408,0.00020289,2]
[332472385,1721219443663,-3882.4501686,0.0002066,7]
[332472443,1721220257935,1000.0,0.00020222,10]
[332472445,1721220279225,13000.0,0.00020222,10]
[332472446,1721220291295,1026.52090834,0.00020222,10]
[332472448,1721220459935,389.51213238,0.00014999,2]
[332472452,1721220494838,-482.7906905,0.00016255,2]
[332472453,1721220494905,-482.7906905,0.00016255,2]
[332472454,1721220512282,3598.12967124,0.00014999,2]
[332472456,1721220519181,-193.65415838,0.00016255,2]
[332472458,1721220542308,217.72515829,0.00014999,2]
[332472482,1721220614775,3598.12967124,0.00014999,2]
[332472516,1721220638735,-271.0912814,0.00017665,2]
[332472517,1721220638746,-250.0,0.00017848,2]
[332472518,1721220638758,-1333.166751,0.00018084,2]
[332472519,1721220638768,-191.39935973,0.00018798,2]
[332472520,1721220638777,-300.0,0.00018896,2]
[332472521,1721220638787,-30000.0,0.00018898,2]
[332472522,1721220638796,-1159.37445784,0.000189,2]
[332472523,1721220638805,-312.07224722,0.00019039,2]
[332472524,1721220638814,-276.97473649,0.00019165,2]
[332472525,1721220638824,-163.677499,0.00019178,2]
[332472526,1721220638835,-164.696287,0.00019178,2]
[332472527,1721220638845,-228.33337167,0.0002,2]